Cogmind - Beta 15 @@@ ROGUE MODE // 2025.07.01 @ 21:05:22 Player: Rockstar Result: Destroyed by Y-45 Defender with Beam Rifle Performance ------------- Evolutions (2) 1000 Regions Visited (3) 600 Robots Destroyed (31) 155 Value Destroyed (1090) 1090 Prototype IDs (0) 0 Alien Tech Used (0) 0 Bonus (0) 0 TOTAL SCORE: 2845 Bonus ------- None Cogmind --------- Core Integrity 0/550 Matter 232/300 Energy 296/350 System Corruption 0% Temperature Cool (18) Movement Core (150) Ox2 Location -8/Materials Parts ------- > --- POWER (2) -------- (None) > --- PROPULSION (2) --- (None) > --- UTILITY (5) ------ Heat Sink High-capacity Battery Advanced Visual Processing Unit > --- WEAPON (2) ------- Particle Gun > --- INVENTORY (5) ---- (None) Peak State ------------ > --- POWER ------------ Deuterium Engine Light Nuclear Core > --- PROPULSION ------- (None) > --- UTILITY ---------- Improved Heat Sink Small Storage Unit Visual Processing Unit Improved Sensor Array Core Shielding > --- WEAPON ----------- Beam Rifle Beam Rifle > --- INVENTORY -------- Ion Engine Ion Engine Improved Ion Engine Heat Sink Beam Rifle Light Assault Rifle Light Assault Rifle [Rating: 20] Favorites ----------- Power Ion Engine Engine Ion Engine Power Core Light Nuclear Core Propulsion Aluminum Leg Treads Light Treads Leg Aluminum Leg Utility Small Storage Unit Device Improved Heat Sink Storage Small Storage Unit Processor Visual Processing Unit Protection Core Shielding Weapon Beam Rifle Energy Gun Beam Rifle Ballistic Gun Light Assault Rifle Launcher Missile Launcher Build | -11 -10 -9 -8 ------- Run | Yrd Mat Mat Mat Slots Evolved 4 | . . 2 2 Power 1 | . . 1 . Propulsion . | . . . . Utility 3 | . . 1 2 Weapon . | . . . . Parts Attached 41 | 6 14 5 16 Power 9 | 1 3 2 3 Engine 6 | 1 2 1 2 Core 3 | . 1 1 1 Reactor . | . . . . Propulsion 8 | 2 2 1 3 Treads 3 | 2 . . 1 Leg 5 | . 2 1 2 Wheel . | . . . . Hover . | . . . . Flight . | . . . . Utility 13 | 1 7 . 5 Device 4 | . 3 . 1 Storage 3 | 1 1 . 1 Processor 2 | . . . 2 Hackware . | . . . . Protection 4 | . 3 . 1 Artifact . | . . . . Weapon 11 | 2 2 2 5 Energy Gun 7 | 1 2 2 2 Energy Cannon . | . . . . Ballistic Gun 3 | 1 . . 2 Ballistic Cannon . | . . . . Launcher 1 | . . . 1 Special Weapon . | . . . . Impact Weapon . | . . . . Slashing Weapon . | . . . . Piercing Weapon . | . . . . Special Melee Weapon . | . . . . Unidentified Prototypes . | . . . . Parts Lost 30 | . 6 4 20 Power 8 | . 1 1 6 Propulsion 8 | . 2 3 3 Utility 6 | . 1 . 5 Weapon 8 | . 2 . 6 Highest Loss Streak 12 | . 6 2 12 To Critical Strikes . | . . . . Average Backups 5 | 2 6 5 5 Power 1 | . 1 1 1 Propulsion . | . 1 . . Utility 1 | . 1 1 . Weapon 2 | . 1 2 2 Tool/Special . | . . . . Unused Backups 3 | . 3 . . Power . | . . . . Propulsion . | . . . . Utility . | . . . . Weapon 3 | . 3 . . Tool/Special . | . . . . Average Slot Usage (%) 87 | . 93 89 81 Engine 11 | . 11 11 11 Core 5 | . 1 10 3 Treads 5 | . 21 . . Leg 7 | . 5 12 5 Device 12 | . 4 11 19 Storage 10 | . 14 11 8 Processor 3 | . . . 9 Protection 8 | . 7 10 6 Energy Gun 16 | . 16 22 10 Ballistic Gun 5 | . 9 . 6 Peak Build Rating 20 | 6 13 17 20 Average Rating 13 | 4 8 14 16 On Entrance 8 | . 6 13 14 Naked Turns . | . . . . Heaviest Build 28 | 14 17 23 28 Greatest Support 40 | 40 40 23 20 Greatest Overweight (x) 9 | . . 7 9 Average Overweight (x) 1 | . . 2 3 Largest Inventory Capacity 8 | 8 8 8 8 Average Capacity 7 | 7 8 8 7 Most Carried 8 | 4 8 7 7 Average Carried 5 | 2 6 5 5 Final Capacity 8 | 8 8 8 5 Final Carried 7 | 4 4 7 . Class Distribution -------------------- 54% | Mutant 45% | Scavenger-Mutant Dominant Class ---------------- Mutant | -10/Materials Scavenger-Mutant | -9/Materials Mutant | -8/Materials Resources | -11 -10 -9 -8 ----------- Run | Yrd Mat Mat Mat Matter Collected 694 | 204 220 100 170 Remotely . | . . . . Salvage Created 1178 | . 324 499 355 Parts 52 | . 13 25 14 Haulers Intercepted 1 | . . . 1 Recyclers Shooed . | . . . . Parts Field Recycled . | . . . . Retrieved Matter . | . . . . Parts Self-Destructed . | . . . . Prevented . | . . . . Kills | -11 -10 -9 -8 ------- Run | Yrd Mat Mat Mat Combat Hostiles Destroyed 24 | . 8 8 8 Guns 18 | . 8 7 3 AOE 4 | . . . 4 Classes Destroyed 8 | . 1 5 2 Worker 2 | . . 1 1 Hauler 1 | . . . 1 Recycler 1 | . . 1 . Operator 1 | . . . 1 Watcher 2 | . . 1 1 Grunt 19 | . 8 4 7 Duelist 1 | . . 1 . Sentry 4 | . . 3 1 Best Kill Streak 7 | . 4 5 7 Combat Bots Only 4 | . 4 4 4 Max Kills in Single Turn 4 | . 1 1 4 Gunslinging . | . . . . Exploded 3 | . . . 3 Melee . | . . . . Uniques/NPCs Destroyed . | . . . . Combat | -11 -10 -9 -8 -------- Run | Yrd Mat Mat Mat Hostile Shots Fired 300 | . 80 66 154 Missed 76 | . 15 21 40 Hits 224 | . 65 45 114 Melee 8 | . . 1 7 Projectile 216 | . 65 44 107 Critical Strikes 13 | . 2 . 11 Actively Blocked 1 | . . . 1 Damage Taken 3286 | . 891 627 1768 Core 788 | . 106 119 563 Absorbed by Shields . | . . . . Redirected to Shielding 101 | . 5 26 70 Core Remaining (%) 75 | 100 57 70 . Volleys Fired 107 | . 34 29 44 Largest 2 | . 2 2 2 Hottest 130 | . 130 130 112 Shots Fired 200 | . 57 58 85 Gun 197 | . 57 58 82 Cannon . | . . . . Launcher 3 | . . . 3 Special . | . . . . Kinetic 65 | . 16 . 49 Thermal 132 | . 41 58 33 Explosive 3 | . . . 3 Electromagnetic . | . . . . Robot Hit Streak 14 | . 12 14 14 Robot Miss Streak 3 | . 3 3 3 Penetration Max . | . . . . Secondary Targets 3 | . 1 1 1 Max Gunslinging Chain 1 | . 1 1 1 Shots Hit Robots 134 | . 39 39 56 Core Hits 65 | . 16 15 34 Critical Kills . | . . . . Critical Parts Destroyed . | . . . . Critical Strikes 10 | . 1 3 6 Burn 10 | . 1 3 6 Melee Attacks . | . . . . Impact . | . . . . Slashing . | . . . . Piercing . | . . . . Sneak Attacks . | . . . . Combat Hostiles . | . . . . Follow-up Attacks . | . . . . Damage Inflicted 2450 | . 532 637 1281 Guns 1750 | . 532 637 581 Cannons . | . . . . Explosions 700 | . . . 700 Melee . | . . . . Ramming . | . . . . Kinetic 371 | . 134 . 237 Thermal 1379 | . 398 637 344 Explosive 700 | . . . 700 Electromagnetic . | . . . . Impact . | . . . . Slashing . | . . . . Piercing . | . . . . Highest Corruption 7 | . 7 . . Average Corruption 4 | . 4 . . Corruption Purged . | . . . . Corruption Blocked . | . . . . Effects 6 | . 6 . . Message Errors 3 | . 3 . . Matter Fused 1 | . 1 . . Energy Discharges 1 | . 1 . . Misfires 1 | . 1 . . Overload Shots . | . . . . Overflow Damage . | . . . . Projectiles . | . . . . Explosions . | . . . . Melee . | . . . . Knockbacks . | . . . . Impact . | . . . . Kinetic . | . . . . Secondary . | . . . . Self-Inflicted Damage . | . . . . Shots . | . . . . Rammed . | . . . . Targets Rammed . | . . . . Kicked . | . . . . Crushed . | . . . . Highest Temperature 411 | . 411 258 45 Average Temperature 105 | . 147 92 15 Received Heat Transfer 1629 | . 534 240 855 Effects 1 | . 1 . . Energy Bleed 1 | . 1 . . Siege Activations . | . . . . Martial Activations . | . . . . Shielding Activations . | . . . . Robots Disrupted . | . . . . Combat Hostiles . | . . . . Robots Corrupted . | . . . . Combat Hostiles . | . . . . Parts Fried . | . . . . Impact Corruptions . | . . . . Robots Melted 2 | . . 1 1 Combat Hostiles 2 | . . 1 1 Parts Melted 8 | . 6 . 2 Heat Transferred 4329 | . 1184 1813 1332 Parts Sabotaged . | . . . . Parts Stolen . | . . . . Parts Stripped . | . . . . Power Chain Reactions . | . . . . Alert | -11 -10 -9 -8 ------- Run | Yrd Mat Mat Mat Maximum Alert Level . | . . . . Low Security (%) 100 | 100 100 100 100 Level 1 . | . . . . Level 2 . | . . . . Level 3 . | . . . . Level 4 . | . . . . Level 5 . | . . . . High Security . | . . . . Max Security . | . . . . Peak Influence 114 | . 69 111 114 Initial . | . . . . Average 24 | . 25 47 9 Influence Increases 724 | . 229 229 266 Destroy 0b10 Robot/C 480 | . 160 160 160 Destroy 0b10 Robot/NC 35 | . . 15 20 Destroy Leader 116 | . 30 52 34 Successful Hack 9 | . 9 . . Disable Machine 30 | . . . 30 Destroy Structure 9 | . . 2 7 Lose Combat Pursuer 45 | . 30 . 15 Influence Decreases 663 | . 229 229 205 Time Decay 393 | . 120 189 84 Lost Part 221 | . 60 40 121 Purge Threat 49 | . 49 . . Squads Dispatched 4 | . 1 . 3 Investigation . | . . . . Extermination . | . . . . Reinforcement 3 | . 1 . 2 Assault . | . . . . Garrison 1 | . . . 1 Intercept . | . . . . Searches Triggered . | . . . . Construction Impeded . | . . . . Haulers Reinforced . | . . . . Active Scanning Responses . | . . . . Cargo Convoy Interrupts . | . . . . Stealth | -11 -10 -9 -8 --------- Run | Yrd Mat Mat Mat Distress Signals 5 | . 1 . 4 Communications Jammed . | . . . . Distress Signals . | . . . . Times Spotted 47 | . 10 10 27 Peak Tracking Total 10 | . 4 4 10 Tactical Retreats 3 | . 2 . 1 Traps | -11 -10 -9 -8 ------- Run | Yrd Mat Mat Mat Traps Triggered 5 | . 5 . . Indirectly . | . . . . Trap Hack Attempts . | . . . . Triggered . | . . . . Disarmed . | . . . . Reprogrammed . | . . . . Reused . | . . . . Traps Extracted . | . . . . Installed . | . . . . Triggered . | . . . . Machines | -11 -10 -9 -8 ---------- Run | Yrd Mat Mat Mat Machines Disabled 2 | . . . 2 Max in Single Turn 1 | . . . 1 Machines Repaired . | . . . . Machines Dismantled . | . . . . Machines Sabotaged . | . . . . Overloaded Fab Kills . | . . . . Hacking | -11 -10 -9 -8 --------- Run | Yrd Mat Mat Mat Machines Accessed 4 | . 2 . 2 Terminals 4 | . 2 . 2 Fabricators . | . . . . Repair Stations . | . . . . Recycling Units . | . . . . Scanalyzers . | . . . . Garrison Access . | . . . . Total Hacks 8 | . 4 . 4 Successful 2 | . 2 . . Failed 6 | . 2 . 4 Catastrophic 3 | . 1 . 2 Database Lockouts . | . . . . Manual 6 | . 2 . 4 Terminals 8 | . 4 . 4 Fabricators . | . . . . Repair Stations . | . . . . Recycling Units . | . . . . Scanalyzers . | . . . . Garrison Access . | . . . . Terminal Hacks 2 | . 2 . . Level Access Points 1 | . 1 . . Unreport Threat 1 | . 1 . . Fabricator Hacks . | . . . . Repair Station Hacks . | . . . . Recycling Unit Hacks . | . . . . Scanalyzer . | . . . . Garrison Access Hacks . | . . . . Unauthorized Hacks . | . . . . Terminals . | . . . . Fabricators . | . . . . Repair Stations . | . . . . Recycling Units . | . . . . Scanalyzers . | . . . . Garrison Access . | . . . . Data Cores Recovered . | . . . . Used . | . . . . Hacking Detections 4 | . 2 . 2 Full Trace Events . | . . . . Feedback Events . | . . . . Feedback Blocked . | . . . . Robot Schematics Acquired . | . . . . Robots Built . | . . . . Authchips . | . . . . Time . | . . . . Total Robot Build Rating . | . . . . Part Schematics Acquired . | . . . . Parts Built . | . . . . Authchips . | . . . . Time . | . . . . Total Part Build Rating . | . . . . Parts Repaired . | . . . . Time . | . . . . Parts Recycled . | . . . . Recycled Matter . | . . . . Retrieved Matter . | . . . . Retrieved Components . | . . . . Parts Scanalyzed . | . . . . Part Schematics Acquired . | . . . . Parts Damaged . | . . . . Bothacking | -11 -10 -9 -8 ------------ Run | Yrd Mat Mat Mat Used RIF Installer . | . . . . Robots Hacked . | . . . . Non-combat . | . . . . Combat . | . . . . Robot Hacks Applied . | . . . . Relay Couplers Released . | . . . . Fabnet Peak Effective % . | . . . . Robots Rewired . | . . . . Allies Hacked . | . . . . Hacks Repelled . | . . . . Allies | -11 -10 -9 -8 -------- Run | Yrd Mat Mat Mat Total Allies . | . . . . Largest Group . | . . . . Highest-Rated Group . | . . . . Highest-Rated Ally . | . . . . Total Orders . | . . . . Ally Attacks . | . . . . Total Damage . | . . . . Kills . | . . . . Allies Corrupted . | . . . . Allies Melted . | . . . . Intel | -11 -10 -9 -8 ------- Run | Yrd Mat Mat Mat Active Infowar (turns) 615 | . . . 615 Optics 615 | . . . 615 Sensors 432 | . . . 432 Robot Analysis Total . | . . . . Derelict Logs Recovered . | . . . . Drone Launches . | . . . . Drone Recoveries . | . . . . Exploration | -11 -10 -9 -8 ------------- Run | Yrd Mat Mat Mat Turns Passed 1558 | 78 372 493 615 Spaces Moved 533 | 42 158 162 171 Core 109 | 1 . 52 56 Treads 157 | 41 112 . 4 Legs 267 | . 46 110 111 Wheels . | . . . . Hover . | . . . . Flight . | . . . . Fastest Speed 50 | 50 120 120 50 Average Speed 211 | 157 148 228 267 Slowest Speed 500 | 160 160 400 500 Overloaded Moves . | . . . . Propulsion Burnouts . | . . . . Robots Hopped . | . . . . Potential Cave-ins . | . . . . Cave-ins Triggered . | . . . . Exploration Rate (%) 18 | 3 31 17 22 Regions Visited 3 Branch Regions . Pre-discovered Areas . | . . . . Known Exits Taken 1 | . 1 . . Unknown Exits Taken 2 | 1 . 1 . Scrap Searched . | . . . . Spaces Dug . | . . . . Terrain Destroyed 6 | . . . 6 Melee . | . . . . Projectile . | . . . . AOE 6 | . . . 6 Terrain Rammed . | . . . . Walls Destroyed . | . . . . Machines Disabled . | . . . . Actions | -11 -10 -9 -8 --------- Run | Yrd Mat Mat Mat Total 769 | 51 243 228 247 Wait 37 | . 17 20 . Move 530 | 41 157 161 171 Hop . | . . . . Pick Up 24 | 4 11 5 4 Fast Attach 15 | 6 2 . 7 Attach 24 | . 8 5 11 Detach 4 | . 2 1 1 Swap 16 | . 4 5 7 Drop 12 | . 8 2 2 Fire 107 | . 34 29 44 Melee . | . . . . Ram . | . . . . Kick . | . . . . Crush . | . . . . Escape Stasis . | . . . . Rewire . | . . . . Trap . | . . . . Miscellaneous . | . . . . Route ------- -11/Scrapyard -10/Materials (discovered 3 exits: *Mat x3) -9/Materials (discovered 2 exits: *Mat / [*Min]) -8/Materials History --------- Turn | Location | Event 14 | -11/Scrapyard | Discovered new exit (range 15) 79 | -11/Scrapyard | Entered Materials 258 | -10/Materials | Identified exit to Materials 317 | -10/Materials | Build established: Mutant 398 | -10/Materials | Lost 6 parts (1p2n1u2w) 451 | -10/Materials | Entered another Materials area 451 | -9/Materials | Evolved 2 slots: Power x1, Utility x1 720 | -9/Materials | Discovered new exit (range 9) 721 | -9/Materials | Discovered new exit (range 16) 849 | -9/Materials | Build established: Scavenger-Mutant 944 | -9/Materials | Entered another Materials area 944 | -8/Materials | Evolved 2 slots: Utility x2 1195 | -8/Materials | Lost 4 parts (1p1u2w) 1524 | -8/Materials | Garrison activated, responded to threat 1537 | -8/Materials | Core integrity fell below 50% 1556 | -8/Materials | Core integrity fell below 20% 1559 | -8/Materials | Destroyed by Y-45 Defender with Beam Rifle Last Messages --------------- Dropped Particle Gun. K-01 Serf collects debris. C-30 ARC bursts open, deploying its payload. S-10 Pest unfolds itself. Acquired Lgt. Assault Rifle. R-06 Scavenger collects Prototype Ballistic Gun. U-05 Engineer lays Concrete. Acquired Particle Gun. Critical hit (Burn: +37). Lgt. Assault Rifle destroyed. K-01 Serf collects debris. U-05 Engineer lays Concrete. Critical hit (Burn: +37). R-06 Scavenger collects Particle Gun. Core Shielding destroyed. U-05 Engineer lays Concrete. K-01 Serf collects debris. U-05 Engineer lays Concrete. Deuterium Engine destroyed. M-28 Smith repairs G-47 Trooper. Map ----- +----------------------------------------------------+ | ???????# #?# #?# ! #???????????????????? | | ???????# #?# #?# | ! #???? ?????????? | | ???????# #?# ### =!= #???? ??????? | | ?????#########?# #"" #???? ??????? | | ?????# #### #"Y #???? ??????? | | ?????# """ + #"" =%! #??? ???????? | | ?????# """ #+##+### #??? ????????? | | ?????# """ # # == ##?? ?????????? | | ?????# # """ # == T#??=== ??????????? | | ?????# # """ # == ##? === ???????????? | | ?????######## """ # #?? === ????????????? | | ????????????# # #?? ?????????????? | | ????????????# # """ #?? *??????????????? | | ????????????######## """"" #? #??????????????? | | ???????????? ???# """"" #? #??????????????? | | ????????????"""""?## """"" ## #??????????????? | | ?????????????"""" # "" # ########???????? | | ?????????????"""" # #???????? | | ?????????????"""" + * #???????? | | ?????????????"""" # % * r% #???????? | | ?????????????""???# m u [! #???????? | | ??????????????????###g#####Yg %[ #???????? | | ????????????????????# s [! !! #???????? | | ????????????????????# ! % ] s sr !! #???????? | | ????????????????????# sk#% """ !! #???????? | | ????????????????????# /! @ # """ #???????? | | ????????????????????# /!l """ # """ #???????? | | ????????????????????# /! """ # #???????? | | ????????????????????# Y""" # [ #???????? | | ????????????????????# #? "" ? #???????? | | ????????????????????####### ###? "G ? ???????? | | ???????????????????????????##??? "????? ????????? | | ???????????????????????????????? ??????????????? | | ???????????????????????????????? ??????????????? | | ????????????????????????????????? #??????????????? | | ????????????????????????????????? ???????????????? | | ?????????????????????????????????!#??????????????? | | ?????????????????????????????????????????????????? | | ?????????????????????????????????????????????????? | | ?????????????????????????????????????????????????? | | ?????????????????????????????????????????????????? | | ?????????????????????????????????????????????????? | | ?????????????????????????????????????????????????? | | ?????????????????????????????????????????????????? | | ?????????????????????????????????????????????????? | | ?????????????????????????????????????????????????? | | ?????????????????????????????????????????????????? | | ?????????????????????????????????????????????????? | | ?????????????????????????????????????????????????? | | ?????????????????????????????????????????????????? | +----------------------------------------------------+ Best States ------------- Heat Dissipation 55 Energy Generation 23 Energy Capacity 415 Matter Stores 300 Matter Capacity 400 Sight Range 20 Robot Scan Range 15 Terrain Scan Density 10 Armor Coverage 150 Core Shielding 20 Evasion (%) 55 Recoil Reduction 2 Item Schematics ----------------- None Robot Schematics ------------------ None Fabricated ------------ Nothing Repaired ---------- Nothing Alien Tech Used ----------------- None Achievements -------------- None Challenges ------------ None Game ------ Seed CloakMagneticWarhead Manual? 0 Play Time 00:29:13 Cumulative 17.7 hours Start 2025.07.01 @ 19:14:30 End 2025.07.01 @ 21:05:22 Sessions 3 Manual Loads 0 Difficulty Rogue Special Mode None Game No. 10 Rogue 7 Adventurer 1 Explorer 2 Win Type - Total 0 Types 0/0/0/0/0/0/0/0/0/0 Lore% 15 Gallery% 18 Achievement% 15 Wizard Run 0 Options --------- Layout 0 ASCII 0 Keyboard 0 Movement Mouse Keybinds 0 Fullscreen 2 Font 24/Smallcaps Map View 76x50 Zoom Use 0% Tactical HUD 0 Map Filters NONE Filters NONE Steam 1 RUN: 65521970-e14e-4b39-84b5-9d52aaf01cc9